{"text_format":"1","workbook":"xlsx","n_sheets":1,"sheets":["Sheet1"],"not_rendered":{"charts":0,"images":0,"macros":1,"external_links":3,"defined_names":0,"comments":0,"pivot_tables":0},"unopened":[],"bounds":{"document_bytes":16777216,"sheet_cells":100000,"rows_first":2000,"rows_last":500,"rows_between":2000,"halvings":0,"cell_chars":16384,"cell_head_chars":4096},"cells_cut":0,"cells_raw":0,"read":"whole","date_system":"1900"}

{"sheet":"Sheet1","index":0,"n_rows":435,"n_cols":4,"rows_kept":435,"cut":false,"hidden":false,"merged":[]}
["اسم العميل","كود","الرصيد","الشيت"]
["امير الجمل",1,{"$f":"[1]فهرس!C2","v":1113.4999999999982},"عملاء1"]
["ايمن ابو سمرة",2,{"$f":"[1]فهرس!C3","v":0},"عملاء1"]
["ايمن الطحان",3,{"$f":"[1]فهرس!C4","v":8750.0499999999993},"عملاء1"]
["ايمن سلًام",4,{"$f":"[1]فهرس!C5","v":0},"عملاء1"]
["ابراهيم مقبل",5,{"$f":"[1]فهرس!C6","v":6.8212102632969618E-13},"عملاء1"]
["جمعية عباد الرحمن",6,{"$f":"[1]فهرس!C7","v":1.8474111129762605E-13},"عملاء1"]
["جودة محمد حلالة",7,{"$f":"[1]فهرس!C8","v":4.6185277824406512E-14},"عملاء1"]
["رضا سويلم",8,{"$f":"[1]فهرس!C9","v":455.99999999999966},"عملاء1"]
["سوق دوت كوم",9,{"$f":"[1]فهرس!C10","v":0},"عملاء1"]
["شاكر جورج",10,{"$f":"[1]فهرس!C11","v":0},"عملاء1"]
["شركة اباظة",11,{"$f":"[1]فهرس!C12","v":0},"عملاء1"]
["شركة جودة-زاهر إبراهيم",12,{"$f":"[1]فهرس!C13","v":0},"عملاء1"]
["شركة موبيكا",13,{"$f":"[1]فهرس!C14","v":0},"عملاء1"]
["طارق مدحت البيطار",14,{"$f":"[1]فهرس!C15","v":-2059.7500000000018},"عملاء1"]
["عادل ابو علام",15,{"$f":"[1]فهرس!C16","v":702.99999999999454},"عملاء1"]
["عادل البحيري",16,{"$f":"[1]فهرس!C17","v":0},"عملاء1"]
["عبد الوهاب لقوشة",17,{"$f":"[1]فهرس!C18","v":0},"عملاء1"]
["قدري الطنبشاوي",18,{"$f":"[1]فهرس!C19","v":0},"عملاء1"]
["محمد الجارحي",19,{"$f":"[1]فهرس!C20","v":4034.5999999999995},"عملاء1"]
["محمد شعبان",20,{"$f":"[1]فهرس!C21","v":0},"عملاء1"]
["محمد عوضين",21,{"$f":"[1]فهرس!C22","v":0},"عملاء1"]
["مدحت البيطار",22,{"$f":"[1]فهرس!C23","v":13069},"عملاء1"]
["مركز القلب",23,{"$f":"[1]فهرس!C24","v":0},"عملاء1"]
["مستشفي دار الصفوة",24,{"$f":"[1]فهرس!C25","v":1.8207657603852567E-13},"عملاء1"]
["مصنع منصور",25,{"$f":"[1]فهرس!C26","v":0},"عملاء1"]
["رزق السروجي",26,{"$f":"[1]فهرس!C27","v":0},"عملاء1"]
["علاء ابو عمو",27,{"$f":"[1]فهرس!C28","v":3609},"عملاء1"]
["محمود فهيم",28,{"$f":"[1]فهرس!C29","v":0},"عملاء1"]
["هيثم صالح",29,{"$f":"[1]فهرس!C30","v":0},"عملاء1"]
["صديق السمرة",30,{"$f":"[1]فهرس!C31","v":7.276401703393276E-13},"عملاء1"]
["اشرف عبد الرؤوف - رضا سويلم",31,{"$f":"[1]فهرس!C32","v":0},"عملاء1"]
["حازم السبع",32,{"$f":"[1]فهرس!C33","v":0},"عملاء1"]
["طارق الدمرداش",33,{"$f":"[1]فهرس!C34","v":-4.9999999999954525E-2},"عملاء1"]
["ابراهيم طلعت الجمل",34,{"$f":"[1]فهرس!C35","v":0},"عملاء1"]
["محمد مسعود",35,{"$f":"[1]فهرس!C36","v":0},"عملاء1"]
["الشركة الاوروبية للمصاعد",36,{"$f":"[1]فهرس!C37","v":0},"عملاء1"]
["مخزن البوسطي",37,{"$f":"[1]فهرس!C38","v":0},"عملاء1"]
["علي السيد",38,{"$f":"[1]فهرس!C39","v":0},"عملاء1"]
["مصنع مواسير اجا",39,{"$f":"[1]فهرس!C40","v":0},"عملاء1"]
["وحيد مكاوي",40,{"$f":"[1]فهرس!C41","v":0},"عملاء1"]
["شركة العبد للمقاولات",41,{"$f":"[1]فهرس!C42","v":0},"عملاء1"]
["مصطفى العيسوي",42,{"$f":"[1]فهرس!C43","v":0},"عملاء1"]
["طاهر العبد",43,{"$f":"[1]فهرس!C44","v":0},"عملاء1"]
["طلعت النقيب",44,{"$f":"[1]فهرس!C45","v":0},"عملاء1"]
["وليد السمان",45,{"$f":"[1]فهرس!C46","v":0},"عملاء1"]
["عبد الحميد النحوي",46,{"$f":"[1]فهرس!C47","v":-0.44999999999936335},"عملاء1"]
["احمد ابوزيد",47,{"$f":"[1]فهرس!C48","v":0},"عملاء1"]
["ايهاب القليني",48,{"$f":"[1]فهرس!C49","v":0},"عملاء1"]
["شركة المصراوي",49,{"$f":"[1]فهرس!C50","v":0},"عملاء1"]
["عبد الله مياح",50,{"$f":"[1]فهرس!C51","v":0},"عملاء1"]
["احمد الغرباوي",51,{"$f":"[1]فهرس!C52","v":-9.9999999991240429E-3},"عملاء1"]
["شركة حلوان للتوريدات م.عادل",52,{"$f":"[1]فهرس!C53","v":0},"عملاء1"]
["عبد المنعم العشري",53,{"$f":"[1]فهرس!C54","v":-60000},"عملاء1"]
["جهاد الشربيني",54,{"$f":"[1]فهرس!C55","v":5926.0499999999993},"عملاء1"]
["حسن علي جاويش",55,{"$f":"[1]فهرس!C56","v":-3.6370906286720128E-13},"عملاء1"]
["الحاج محمد الجمل - الراهبين",56,{"$f":"[1]فهرس!C57","v":0},"عملاء1"]
["محرم محمد سيف الدين",57,{"$f":"[1]فهرس!C58","v":0},"عملاء1"]
["احمد ابو سالم",58,{"$f":"[1]فهرس!C59","v":8.5265128291212022E-14},"عملاء1"]
["ياسر البغل الشون",59,{"$f":"[1]فهرس!C60","v":1.0000000069325665E-3},"عملاء1"]
["الاسكندرية لتطوير المعادن",60,{"$f":"[1]فهرس!C61","v":4.8800000010032818E-2},"عملاء1"]
["مرور المحلة",61,{"$f":"[1]فهرس!C62","v":0},"عملاء1"]
["رضا مقبل",62,{"$f":"[1]فهرس!C63","v":0},"عملاء1"]
["شركة الحسين للاعلاف",63,{"$f":"[1]فهرس!C64","v":0},"عملاء1"]
["هاني وفا",64,{"$f":"[1]فهرس!C65","v":0},"عملاء1"]
["شركة المعداوي",65,{"$f":"[1]فهرس!C66","v":-7.2741812573440257E-13},"عملاء1"]
["الشركة الوطنية للنسيجيات",66,{"$f":"[1]فهرس!C67","v":544.09999999999991},"عملاء1"]
["بست",67,{"$f":"[1]فهرس!C68","v":60005.451499999996},"عملاء1"]
["شركة الدرينى للاعمال الهندسيه",68,{"$f":"[1]فهرس!C69","v":330},"عملاء1"]
["شركة أقطان مصر ( المصنع )",69,{"$f":"[1]فهرس!C70","v":155820.0499999997},"عملاء1"]
["شركة أقطان مصر ( المصبغة )",70,{"$f":"[1]فهرس!C71","v":1826.1395000000048},"عملاء1"]
["شركة كوهية العاشر+بورسعيد",71,{"$f":"[1]فهرس!C72","v":11047.150000000023},"عملاء1"]
["شركة كوهية سمنود",72,{"$f":"[1]فهرس!C73","v":7431.2999999999956},"عملاء1"]
["شركة الجمــل أ.محمد الجمل",73,{"$f":"[1]فهرس!C74","v":949.5},"عملاء1"]
["شركة الجمــل أ.احمد الجمل",74,{"$f":"[1]فهرس!C75","v":1594.2},"عملاء1"]
["شركة حمدي شومان",75,{"$f":"[1]فهرس!C76","v":0},"عملاء1"]
["مصطفى أبو زيد",76,{"$f":"[1]فهرس!C77","v":0},"عملاء1"]
["مصنع البدوى للبلاستيك",77,{"$f":"[1]فهرس!C78","v":-9730.6746000000021},"عملاء1"]
["مصنع الفوطي",78,{"$f":"[1]فهرس!C79","v":1439.25},"عملاء1"]
["مصنع السلام - أ.ميلاد شحاتة",79,{"$f":"[1]فهرس!C80","v":0},"عملاء1"]
["طلعت الجمل",80,{"$f":"[1]فهرس!C81","v":1871.75},"عملاء1"]
["نصر السهيلي",81,{"$f":"[1]فهرس!C82","v":3545},"عملاء1"]
["هاني طلبة",82,{"$f":"[1]فهرس!C83","v":0},"عملاء1"]
["اسامة عمران",83,{"$f":"[1]فهرس!C84","v":-4.9999999999727152E-2},"عملاء1"]
["اكرم وفا",84,{"$f":"[1]فهرس!C85","v":0},"عملاء1"]
["النبراوي",85,{"$f":"[1]فهرس!C86","v":251},"عملاء1"]
["محمد عبد الرحمن",86,{"$f":"[1]فهرس!C87","v":0},"عملاء1"]
["مول المحلة",87,{"$f":"[1]فهرس!C88","v":-4.5297099404706387E-14},"عملاء1"]
["محمد سمك",88,{"$f":"[1]فهرس!C89","v":0},"عملاء1"]
["محمود حامد الغنام",89,{"$f":"[1]فهرس!C90","v":0},"عملاء1"]
["سمير المرسي",90,{"$f":"[1]فهرس!C91","v":0},"عملاء1"]
["محمد المصري",91,{"$f":"[1]فهرس!C92","v":0},"عملاء1"]
["مسعد البقري",92,{"$f":"[1]فهرس!C93","v":0},"عملاء1"]
["مختار العبادي-صلاح مختار",93,{"$f":"[1]فهرس!C94","v":0},"عملاء1"]
["محمد العبد",94,{"$f":"[1]فهرس!C95","v":957.04999999999984},"عملاء1"]
["محمود يحيي",95,{"$f":"[1]فهرس!C96","v":4.9999999999272404E-2},"عملاء1"]
["عبد السميع الشامي",96,{"$f":"[1]فهرس!C97","v":-5.0000000000011369E-2},"عملاء1"]
["محمود الشامي",96,{"$f":"[1]فهرس!C98","v":955.47500000000218},"عملاء1"]
["عاطف غدية",97,{"$f":"[1]فهرس!C99","v":-4.9999999997453415E-2},"عملاء1"]
["علاء مقبل",98,{"$f":"[1]فهرس!C100","v":0},"عملاء1"]
["علاء مقبل مسجد قادوس",99,{"$f":"[1]فهرس!C101","v":4.9999999999999822E-2},"عملاء1"]
["علاء الطور",100,{"$f":"[1]فهرس!C102","v":0},"عملاء1"]
["علاء الصياد",101,{"$f":"[2]فهرس!C2","v":324.99999999999955},"عملاء2"]
["علاء عمارة",102,{"$f":"[2]فهرس!C3","v":34574.9},"عملاء2"]
["حمدي السهيلي",103,{"$f":"[2]فهرس!C4","v":36844.020000000004},"عملاء2"]
["عيادة حمدي السهيلي",104,{"$f":"[2]فهرس!C5","v":0},"عملاء2"]
["حسام ترك",105,{"$f":"[2]فهرس!C6","v":0},"عملاء2"]
["سليم البيلي",106,{"$f":"[2]فهرس!C7","v":-0.49999999999954525},"عملاء2"]
["حازم نصر السهيلي",107,{"$f":"[2]فهرس!C8","v":402},"عملاء2"]
["صالح العباسي",108,{"$f":"[2]فهرس!C9","v":0},"عملاء2"]
["صلاح السجاعي",109,{"$f":"[2]فهرس!C10","v":-2594.0000000000005},"عملاء2"]
["راجي مدكور",110,{"$f":"[2]فهرس!C11","v":0},"عملاء2"]
["جهاد السهيلي",111,{"$f":"[2]فهرس!C12","v":0},"عملاء2"]
["سيد سيد احمد يوسف",112,{"$f":"[2]فهرس!C13","v":0.30000000000109139},"عملاء2"]
["م.طارق السهيلي",113,{"$f":"[2]فهرس!C14","v":436677.61999999994},"عملاء2"]
["ابراهيم الدهان ",114,{"$f":"[2]فهرس!C15","v":300},"عملاء2"]
["محمود الفيومي",121,{"$f":"[2]فهرس!C16","v":0},"عملاء2"]
["شركة الشرق",122,{"$f":"[2]فهرس!C17","v":0},"عملاء2"]
["سيد شهيبة",123,{"$f":"[2]فهرس!C18","v":0},"عملاء2"]
["الجمعية الشرعية",124,{"$f":"[2]فهرس!C19","v":6610.8789999999899},"عملاء2"]
["بسيوني زارع",125,{"$f":"[2]فهرس!C20","v":0},"عملاء2"]
["سمير عبد الجواد",126,{"$f":"[2]فهرس!C21","v":0},"عملاء2"]
["احمد أبو اليزيد",127,{"$f":"[2]فهرس!C22","v":0},"عملاء2"]
["احمد الطوبشي",129,{"$f":"[2]فهرس!C23","v":0},"عملاء2"]
["محسن عبد المحسن",130,{"$f":"[2]فهرس!C24","v":523},"عملاء2"]
["هشام خروب",131,{"$f":"[2]فهرس!C25","v":0},"عملاء2"]
["علي العباسي",132,{"$f":"[2]فهرس!C26","v":0},"عملاء2"]
["محمد عبد الهادي طه",133,{"$f":"[2]فهرس!C27","v":0},"عملاء2"]
["شركة ندى مصر",134,{"$f":"[2]فهرس!C28","v":0},"عملاء2"]
["وائل الجندي",135,{"$f":"[2]فهرس!C29","v":0},"عملاء2"]
["محمد ناصف",136,{"$f":"[2]فهرس!C30","v":38271},"عملاء2"]
["جهاد ملوحي",137,{"$f":"[2]فهرس!C31","v":0},"عملاء2"]
["برج الصفوة",139,{"$f":"[2]فهرس!C32","v":0},"عملاء2"]
["محمد جادو",140,{"$f":"[2]فهرس!C33","v":0},"عملاء2"]
["محمد عبد المجيد",141,{"$f":"[2]فهرس!C34","v":0},"عملاء2"]
["طارق عبد الحليم",142,{"$f":"[2]فهرس!C35","v":0},"عملاء2"]
["المسجد الكبير بقرية الابشيط",143,{"$f":"[2]فهرس!C36","v":0},"عملاء2"]
["حسن النظامي",144,{"$f":"[2]فهرس!C37","v":0},"عملاء2"]
["محمد نبيل",146,{"$f":"[2]فهرس!C38","v":0},"عملاء2"]
["عمرو عاصي",147,{"$f":"[2]فهرس!C39","v":0},"عملاء2"]
["محمد إبراهيم",148,{"$f":"[2]فهرس!C40","v":0},"عملاء2"]
["محمد عامر",149,{"$f":"[2]فهرس!C41","v":0},"عملاء2"]
["الحاج مجدي عرجان",150,{"$f":"[2]فهرس!C42","v":0},"عملاء2"]
["ايمن المصري",151,{"$f":"[2]فهرس!C43","v":0},"عملاء2"]
["نبيل الجميزي",152,{"$f":"[2]فهرس!C44","v":14967.300000000003},"عملاء2"]
["صالح عبد الحي",153,{"$f":"[2]فهرس!C45","v":0},"عملاء2"]
["احمد العمورسي",154,{"$f":"[2]فهرس!C46","v":0},"عملاء2"]
["ايمن محسن",155,{"$f":"[2]فهرس!C47","v":0},"عملاء2"]
["معتز طلعت",156,{"$f":"[2]فهرس!C48","v":0},"عملاء2"]
["السيد سلامة",157,{"$f":"[2]فهرس!C49","v":0},"عملاء2"]
["محمد الخولي",158,{"$f":"[2]فهرس!C50","v":0},"عملاء2"]
["نبيل احمد",159,{"$f":"[2]فهرس!C51","v":0},"عملاء2"]
["محمود السهيلي",160,{"$f":"[2]فهرس!C52","v":0},"عملاء2"]
["مخزن السريع",162,{"$f":"[2]فهرس!C53","v":0},"عملاء2"]
["السيد النقرتي",163,{"$f":"[2]فهرس!C54","v":0},"عملاء2"]
["السيد فتحي",164,{"$f":"[2]فهرس!C55","v":0},"عملاء2"]
["الدريني للتجارة",165,{"$f":"[2]فهرس!C56","v":0},"عملاء2"]
["محمد خورشد",166,{"$f":"[2]فهرس!C57","v":1570.1500000000015},"عملاء2"]
["جودة للحاصلات الزراعية",167,{"$f":"[2]فهرس!C58","v":-0.25},"عملاء2"]
["جراند بابليون",168,{"$f":"[2]فهرس!C59","v":0},"عملاء2"]
["عمرو أبو جمرة",170,{"$f":"[2]فهرس!C60","v":0},"عملاء2"]
["عابد مرعي",171,{"$f":"[2]فهرس!C61","v":0},"عملاء2"]
["علي دشيش",172,{"$f":"[2]فهرس!C62","v":0},"عملاء2"]
["عصام الطور",173,{"$f":"[2]فهرس!C63","v":0},"عملاء2"]
["عادل خفاجى",174,{"$f":"[2]فهرس!C64","v":-5.6621374255882984E-15},"عملاء2"]
["عمرو طلعت",175,{"$f":"[2]فهرس!C65","v":0},"عملاء2"]
["عزت القليني",176,{"$f":"[2]فهرس!C66","v":251.55000000000109},"عملاء2"]
["علاء أبو سليمان",177,{"$f":"[2]فهرس!C67","v":0},"عملاء2"]
["مسعد الششتاوي",178,{"$f":"[2]فهرس!C68","v":0},"عملاء2"]
["عمرو السهيلي",179,{"$f":"[2]فهرس!C69","v":4901},"عملاء2"]
["احمد الخفة",180,{"$f":"[2]فهرس!C70","v":4049.9500000000007},"عملاء2"]
["مصطفى زكي",182,{"$f":"[2]فهرس!C71","v":9863},"عملاء2"]
["حسونة البقري",183,{"$f":"[2]فهرس!C72","v":0},"عملاء2"]
["محمد البلاط",184,{"$f":"[2]فهرس!C73","v":380356.65},"عملاء2"]
["محمد علي عبد الحميد",186,{"$f":"[2]فهرس!C74","v":2426.9999999999991},"عملاء2"]
["إيهاب القصاص",187,{"$f":"[2]فهرس!C75","v":0},"عملاء2"]
["محمد الكموني",188,{"$f":"[2]فهرس!C76","v":0},"عملاء2"]
["محمد البلتاجي",190,{"$f":"[2]فهرس!C77","v":0},"عملاء2"]
["محمد السيد",191,{"$f":"[2]فهرس!C78","v":0},"عملاء2"]
["عثمان البيلي",192,{"$f":"[2]فهرس!C79","v":0},"عملاء2"]
["رمضان البنا",195,{"$f":"[2]فهرس!C80","v":0},"عملاء2"]
["خالد بسيوني",196,{"$f":"[2]فهرس!C81","v":0},"عملاء2"]
["مصنع عثمان",197,{"$f":"[2]فهرس!C82","v":0},"عملاء2"]
["مدارس العهد الحديث",198,{"$f":"[2]فهرس!C83","v":0},"عملاء2"]
["سعيد أبو عامر",199,{"$f":"[2]فهرس!C84","v":0},"عملاء2"]
["رمضان الهلالي",200,{"$f":"[2]فهرس!C85","v":0},"عملاء2"]
["جمعة عبد المعبود  ",201,{"$f":"[3]فهرس!C2","v":0},"عملاء3"]
["حمادة كمال السامولي",207,{"$f":"[3]فهرس!C3","v":0},"عملاء3"]
["هشام طه",210,{"$f":"[3]فهرس!C4","v":0},"عملاء3"]
["أسامة أبو السعود",213,{"$f":"[3]فهرس!C5","v":0},"عملاء3"]
["محمد أبو قمر",215,{"$f":"[3]فهرس!C6","v":0},"عملاء3"]
["أ. صبري غانم (مركز السهيلي)",218,{"$f":"[3]فهرس!C7","v":0},"عملاء3"]
["سامي طه",219,{"$f":"[3]فهرس!C8","v":0},"عملاء3"]
["تامر عبد العزيز",220,{"$f":"[3]فهرس!C9","v":0},"عملاء3"]
["محمود حمزة",223,{"$f":"[3]فهرس!C10","v":0},"عملاء3"]
["غريب يس",225,{"$f":"[3]فهرس!C11","v":0},"عملاء3"]
["عادل لقوشة",228,{"$f":"[3]فهرس!C12","v":0},"عملاء3"]
[" محمد شحاتة - المنصورة",229,{"$f":"[3]فهرس!C13","v":0},"عملاء3"]
["محمد الشنهاب",230,{"$f":"[3]فهرس!C14","v":5665.0499999999993},"عملاء3"]
["هيثم عادل كساب",231,{"$f":"[3]فهرس!C15","v":0},"عملاء3"]
["شركة بلدر",232,{"$f":"[3]فهرس!C16","v":0},"عملاء3"]
["الدسوقي العباسي",233,{"$f":"[3]فهرس!C17","v":0},"عملاء3"]
["احمد زايد",236,{"$f":"[3]فهرس!C18","v":-55},"عملاء3"]
["رجب عطية",237,{"$f":"[3]فهرس!C19","v":0},"عملاء3"]
["مصطفى الاسواني",238,{"$f":"[3]فهرس!C20","v":0},"عملاء3"]
["مطعم الكيرة",240,{"$f":"[3]فهرس!C21","v":0},"عملاء3"]
["الجمعية الخيرية",242,{"$f":"[3]فهرس!C22","v":0},"عملاء3"]
["علاء عبد البر",244,{"$f":"[3]فهرس!C23","v":0},"عملاء3"]
["سامي الشيخ",246,{"$f":"[3]فهرس!C24","v":0},"عملاء3"]
["طارق النجار",248,{"$f":"[3]فهرس!C25","v":0},"عملاء3"]
["سعيد الفخراني",249,{"$f":"[3]فهرس!C26","v":0},"عملاء3"]
["احمد هاشم",253,{"$f":"[3]فهرس!C27","v":0},"عملاء3"]
["رمضان الطور",254,{"$f":"[3]فهرس!C28","v":3.638200851696638E-13},"عملاء3"]
["وليد الحسيني",255,{"$f":"[3]فهرس!C29","v":0},"عملاء3"]
["محمد النجار",256,{"$f":"[3]فهرس!C30","v":0},"عملاء3"]
["اسماعيل الدريني",262,{"$f":"[3]فهرس!C31","v":682},"عملاء3"]
["م  طارق (جمارك)",263,{"$f":"[3]فهرس!C32","v":0},"عملاء3"]
["م  محمد جمال (المصرية)",264,{"$f":"[3]فهرس!C33","v":0},"عملاء3"]
["الحاج سمير القاضي",265,{"$f":"[3]فهرس!C34","v":0},"عملاء3"]
["ياسر البغل المنصورة",267,{"$f":"[3]فهرس!C35","v":0},"عملاء3"]
["ايس فود",270,{"$f":"[3]فهرس!C36","v":-0.49799999999964939},"عملاء3"]
[" فور باك للطباعة",271,{"$f":"[3]فهرس!C37","v":0},"عملاء3"]
["مسجد الشيخ عبد العزيز",272,{"$f":"[3]فهرس!C38","v":0},"عملاء3"]
["منجم السكري",273,{"$f":"[3]فهرس!C39","v":0},"عملاء3"]
["يحيي زكريا عيد",274,{"$f":"[3]فهرس!C40","v":0},"عملاء3"]
["ياسر البغل المحجوب",275,{"$f":"[3]فهرس!C41","v":1.8207657603852567E-13},"عملاء3"]
["ياسر البغل القاهرة",276,{"$f":"[3]فهرس!C42","v":0},"عملاء3"]
["شركة النيل للعبوات",277,{"$f":"[3]فهرس!C43","v":-7.5670025800889107E-12},"عملاء3"]
["محمود مقبل",278,{"$f":"[3]فهرس!C44","v":0},"عملاء3"]
["أحمد الشيخي",279,{"$f":"[3]فهرس!C45","v":0},"عملاء3"]
["محمد عبد العليم ",280,{"$f":"[3]فهرس!C46","v":0},"عملاء3"]
["حمادة عطية",281,{"$f":"[3]فهرس!C47","v":-1.8185453143360064E-13},"عملاء3"]
["عبد الوهاب (مصنع السهيلي)",282,{"$f":"[3]فهرس!C48","v":0},"عملاء3"]
["عمارة السهيلي",283,{"$f":"[3]فهرس!C49","v":3892.7000000000003},"عملاء3"]
["احمد عمام",286,{"$f":"[3]فهرس!C50","v":0},"عملاء3"]
["شركة مصر للغزل والنسيج",288,{"$f":"[3]فهرس!C51","v":3.8245610636522542E-4},"عملاء3"]
["احمد الشيخة",289,{"$f":"[3]فهرس!C52","v":0},"عملاء3"]
["مصطفي الجمل",290,{"$f":"[3]فهرس!C53","v":0},"عملاء3"]
["مصطفي زايد",291,{"$f":"[3]فهرس!C54","v":0},"عملاء3"]
["رضا جاد",292,{"$f":"[3]فهرس!C55","v":0},"عملاء3"]
["علاء خضر",293,{"$f":"[3]فهرس!C56","v":305857.5},"عملاء3"]
["خالد موسي",294,{"$f":"[3]فهرس!C57","v":0},"عملاء3"]
["مجدي حسن",295,{"$f":"[3]فهرس!C58","v":-500},"عملاء3"]
["شركة المالك للمقاولات ",296,{"$f":"[3]فهرس!C59","v":-1.4552803406786552E-12},"عملاء3"]
["الشركة المصرية للتكرير ",297,{"$f":"[3]فهرس!C60","v":0},"عملاء3"]
["المصرية التركية للملابس",298,{"$f":"[3]فهرس!C61","v":0},"عملاء3"]
["أحمد الشيخ",299,{"$f":"[3]فهرس!C62","v":0},"عملاء3"]
["ممدوح محمد حنفي",300,{"$f":"[3]فهرس!C63","v":-7.3896444519050419E-13},"عملاء3"]
["عادل شكرى",301,{"$f":"[3]فهرس!C64","v":0},"عملاء3"]
["جمال عوض",302,{"$f":"[3]فهرس!C65","v":0},"عملاء3"]
["شركة المجد للاعلاف",303,{"$f":"[3]فهرس!C66","v":0},"عملاء3"]
["طارق عبد المنعم",304,{"$f":"[3]فهرس!C67","v":0},"عملاء3"]
["مرزوق",305,{"$f":"[3]فهرس!C68","v":0},"عملاء3"]
["شركة ابو بكر الصديق للتكييف",306,{"$f":"[3]فهرس!C69","v":0},"عملاء3"]
[" فتح الله مبروك حمزة",307,{"$f":"[3]فهرس!C70","v":0},"عملاء3"]
["شركة المحيط",308,{"$f":"[3]فهرس!C71","v":0},"عملاء3"]
["مدحت البيطار",309,{"$f":"[3]فهرس!C72","v":0},"عملاء3"]
["م. محمد جمال - مكتب جمال",310,{"$f":"[3]فهرس!C73","v":0},"عملاء3"]
[" رضا فؤاد",311,{"$f":"[3]فهرس!C74","v":0},"عملاء3"]
["خالد غانم - الاسكندرية",312,{"$f":"[3]فهرس!C75","v":0},"عملاء3"]
["ابراهيم عبد الفتاح",313,{"$f":"[3]فهرس!C76","v":0},"عملاء3"]
["مسعد الكيره",314,{"$f":"[3]فهرس!C77","v":0},"عملاء3"]
["محمد عبد الله",202,null,"عملاء الحركة الواحدة"]
["أسامة العيسوي",204,null,"عملاء الحركة الواحدة"]
["حاتم",205,null,"عملاء الحركة الواحدة"]
["عبد الستار الشامي",206,null,"عملاء الحركة الواحدة"]
["محمد شعبان",209,null,"عملاء الحركة الواحدة"]
["رشاد شرف",211,null,"عملاء الحركة الواحدة"]
["خالد الشيخة",212,null,"عملاء الحركة الواحدة"]
["رضا عمر",216,null,"عملاء الحركة الواحدة"]
["صالح نوفل",222,null,"عملاء الحركة الواحدة"]
["ماجد سمك (السجل المدني)",224,null,"عملاء الحركة الواحدة"]
["السيد كمال",226,null,"عملاء الحركة الواحدة"]
["محمود المزاحي",227,null,"عملاء الحركة الواحدة"]
[null,239,null,"عملاء الحركة الواحدة"]
["شركة برلين",245,null,"عملاء الحركة الواحدة"]
["محمود البيومي",247,null,"عملاء الحركة الواحدة"]
["محمود خليل",250,null,"عملاء الحركة الواحدة"]
["نبيل عطية",251,null,"عملاء الحركة الواحدة"]
["سعد البيلي",252,null,"عملاء الحركة الواحدة"]
["امين السيد امين",257,null,"عملاء الحركة الواحدة"]
["الدسوقي أبو اليزيد",259,null,"عملاء الحركة الواحدة"]
["مصطفي أبو اليزيد",260,null,"عملاء الحركة الواحدة"]
["عربي مجاهد",261,null,"عملاء الحركة الواحدة"]
["كريم عبد الجواد",266,null,"عملاء الحركة الواحدة"]
[" محمد عبد الله (اسيوط)",268,null,"عملاء الحركة الواحدة"]
["احمد حجازي",269,null,"عملاء الحركة الواحدة"]
["ابراهيم سامي ",284,null,"عملاء الحركة الواحدة"]
["محمد شعيب",285,null,"عملاء الحركة الواحدة"]
["عرفة السمان",287,null,"عملاء الحركة الواحدة"]
["شركة مصر ادفو",288,null,"عملاء الحركة الواحدة"]
["محمد علي النبراوي",1,null,"عملاء الحركة الواحدة 2"]
["احمد فطيم حسن صالح",2,null,"عملاء الحركة الواحدة 2"]
["هشام زمزم",3,null,"عملاء الحركة الواحدة 2"]
["مدحت كوم حماده",4,null,"عملاء الحركة الواحدة 2"]
["كمال السامولي",5,null,"عملاء الحركة الواحدة 2"]
["علاء بلطيم",6,null,"عملاء الحركة الواحدة 2"]
["محمود مقبل",7,null,"عملاء الحركة الواحدة 2"]
["عطية عبده عطية",8,null,"عملاء الحركة الواحدة 2"]
["محمود فايد",9,null,"عملاء الحركة الواحدة 2"]
["عبد الرحمن ناصف",10,null,"عملاء الحركة الواحدة 2"]
["علي علي الخواجة",11,null,"عملاء الحركة الواحدة 2"]
["محمد احمد",12,null,"عملاء الحركة الواحدة 2"]
["محمد كامل",13,null,"عملاء الحركة الواحدة 2"]
["احمد علي النبراوي",14,null,"عملاء الحركة الواحدة 2"]
["ابراهيم جمال ابو هلال",15,null,"عملاء الحركة الواحدة 2"]
["اسامة الجنزوري",16,null,"عملاء الحركة الواحدة 2"]
["فتحي الشيخ",17,null,"عملاء الحركة الواحدة 2"]
["فهمي يونس",18,null,"عملاء الحركة الواحدة 2"]
["نصر الخواجة",19,null,"عملاء الحركة الواحدة 2"]
["علاء عبد الله",20,null,"عملاء الحركة الواحدة 2"]
["محمد بسيوني",21,null,"عملاء الحركة الواحدة 2"]
["أحمد شعبان",22,null,"عملاء الحركة الواحدة 2"]
["باسم بشري",23,null,"عملاء الحركة الواحدة 2"]
["محمد أمامو",24,null,"عملاء الحركة الواحدة 2"]
["هاني الشحات شريف",25,null,"عملاء الحركة الواحدة 2"]
["اشرف مسعود",26,null,"عملاء الحركة الواحدة 2"]
["شركة الطيب",27,null,"عملاء الحركة الواحدة 2"]
["اكاديمية السلاب",28,null,"عملاء الحركة الواحدة 2"]
["الحاج صلاح رمضان",29,null,"عملاء الحركة الواحدة 2"]
["مصطفي عقرب",30,null,"عملاء الحركة الواحدة 2"]
["م. شوقي بخيت",31,null,"عملاء الحركة الواحدة 2"]
["أ.عادل صبري",32,null,"عملاء الحركة الواحدة 2"]
[" أ. عبد الحميد عبد الرحيم",33,null,"عملاء الحركة الواحدة 2"]
["شركة الصفا للاعلاف",34,null,"عملاء الحركة الواحدة 2"]
["الحاج محمد المحمدي ابو عمر",35,null,"عملاء الحركة الواحدة 2"]
["أ. السيد عنتر",36,null,"عملاء الحركة الواحدة 2"]
["أ. محمد خليل",37,null,"عملاء الحركة الواحدة 2"]
["أ. احمد السلكاوي",38,null,"عملاء الحركة الواحدة 2"]
["الحاج مسعد الصم",39,null,"عملاء الحركة الواحدة 2"]
["م. نعمان ابو قمر",40,null,"عملاء الحركة الواحدة 2"]
["الحاج حسن الصياد",41,null,"عملاء الحركة الواحدة 2"]
["احمد منسي",42,null,"عملاء الحركة الواحدة 2"]
["أ. محمد ابو صالح",43,null,"عملاء الحركة الواحدة 2"]
[" الحاج عبد المحسن",44,null,"عملاء الحركة الواحدة 2"]
["الحاج صلاح سيد احمد",45,null,"عملاء الحركة الواحدة 2"]
["رجب البيعة",46,null,"عملاء الحركة الواحدة 2"]
["الحاج أيمن عطية",47,null,"عملاء الحركة الواحدة 2"]
["م. أحمد رشاد",48,null,"عملاء الحركة الواحدة 2"]
["الحاج مصطفي ابو اليزيد",49,null,"عملاء الحركة الواحدة 2"]
["طارق عبد الحق",50,null,"عملاء الحركة الواحدة 2"]
[" أ. السيد ابو السعود",51,null,"عملاء الحركة الواحدة 2"]
["م. محمد سامي",52,null,"عملاء الحركة الواحدة 2"]
["م. محمود العجمي",53,null,"عملاء الحركة الواحدة 2"]
["الحاج فرج مرعي",54,null,"عملاء الحركة الواحدة 2"]
["الحاج ممدوح ابو الفضل",55,null,"عملاء الحركة الواحدة 2"]
["أ - محمد صيام ",56,null,"عملاء الحركة الواحدة 2"]
["محمد عبد السلام ابو شوشة",57,null,"عملاء الحركة الواحدة 2"]
["م. ياسر نبيل المسيري",58,null,"عملاء الحركة الواحدة 2"]
["محمد سرحان",59,null,"عملاء الحركة الواحدة 2"]
["الحاج محمود عبد العال",60,null,"عملاء الحركة الواحدة 2"]
["حسام الدين",61,null,"عملاء الحركة الواحدة 2"]
["أ - علي سالم",62,null,"عملاء الحركة الواحدة 2"]
["أ - احمد البيلي",63,null,"عملاء الحركة الواحدة 2"]
["م. أيمن شعبان",64,null,"عملاء الحركة الواحدة 2"]
["عبد الحفيظ الشهاوي",65,null,"عملاء الحركة الواحدة 2"]
["صباغ الاهرام",66,null,"عملاء الحركة الواحدة 2"]
["محسن الجميزي",67,null,"عملاء الحركة الواحدة 2"]
["سامي سليمان",68,null,"عملاء الحركة الواحدة 2"]
["احمد عراض",69,null,"عملاء الحركة الواحدة 2"]
["م.نبيل المسيري",70,null,"عملاء الحركة الواحدة 2"]
["أ. احمد رجب",71,null,"عملاء الحركة الواحدة 2"]
["شركة سيليا للمنسوجات",72,null,"عملاء الحركة الواحدة 2"]
["مهاب",73,null,"عملاء الحركة الواحدة 2"]
["احمد سعد",74,null,"عملاء الحركة الواحدة 2"]
["سامح الدميري",75,null,"عملاء الحركة الواحدة 2"]
["محمد الوصيف",76,null,"عملاء الحركة الواحدة 2"]
["عماد سمير",77,null,"عملاء الحركة الواحدة 2"]
["الشركة الرباعية للنسيج",78,null,"عملاء الحركة الواحدة 2"]
["الحاج السعيد غيده",79,null,"عملاء الحركة الواحدة 2"]
["الحاج فتحي شقوير",80,null,"عملاء الحركة الواحدة 2"]
["محمد لاشين",81,null,"عملاء الحركة الواحدة 2"]
["باور سيستم أ. أحمد عبد الرحيم",82,null,"عملاء الحركة الواحدة 2"]
["إبراهيم هلهل",83,null,"عملاء الحركة الواحدة 2"]
["شركة سكاي توب ",84,null,"عملاء الحركة الواحدة 2"]
["الحاج سيد عاصي",85,null,"عملاء الحركة الواحدة 2"]
["هيثم محمد",86,null,"عملاء الحركة الواحدة 2"]
["رضا السلاخ",87,null,"عملاء الحركة الواحدة 2"]
["انترفود - مصطفي غنيم",88,null,"عملاء الحركة الواحدة 2"]
["شركة الفجر للدواجن",89,null,"عملاء الحركة الواحدة 2"]
["محمد نوفل",90,null,"عملاء الحركة الواحدة 2"]
["فكري عبد الله",91,null,"عملاء الحركة الواحدة 2"]
["شركة غزل شبين",92,null,"عملاء الحركة الواحدة 2"]
["حامد سعد",93,null,"عملاء الحركة الواحدة 2"]
["احمد النمرسي",94,null,"عملاء الحركة الواحدة 2"]
["علي الصاوي",95,null,"عملاء الحركة الواحدة 2"]
["شركة K-C-G - العاشر",96,null,"عملاء الحركة الواحدة 2"]
["ياسر البغل - العمارة",97,null,"عملاء الحركة الواحدة 2"]
["محمود حمزة",98,null,"عملاء الحركة الواحدة 2"]
["عبده محمد",99,null,"عملاء الحركة الواحدة 2"]
["مصنع العبد - القنطرة",100,null,"عملاء الحركة الواحدة 2"]
["ابراهيم جاب الله",101,null,"عملاء الحركة الواحدة 2"]
["عمرو الشعراوي",102,null,"عملاء الحركة الواحدة 2"]
["فتحي الطناحي",103,null,"عملاء الحركة الواحدة 2"]
["سامح الالفي",104,null,"عملاء الحركة الواحدة 2"]
["محمد الابس",105,null,"عملاء الحركة الواحدة 2"]
["حسن عبد العال خاطر",106,null,"عملاء الحركة الواحدة 2"]
["محمد خطاب",107,null,"عملاء الحركة الواحدة 2"]
["أ. وليد يسرى",108,null,"عملاء الحركة الواحدة 3"]
["محمد ربيع",109,null,"عملاء الحركة الواحدة 3"]
["بدر الضمين",110,null,"عملاء الحركة الواحدة 3"]
["م . علاء بلحه ",111,null,"عملاء الحركة الواحدة 3"]
["د - احمد مهدي",112,null,"عملاء الحركة الواحدة 3"]
["محمد يحيى الوكيل",113,null,"عملاء الحركة الواحدة 3"]
["احمد بــــك الديــــــب",114,null,"عملاء الحركة الواحدة 3"]
["سعد ابو زيد",115,null,"عملاء الحركة الواحدة 3"]
["نصر فاضل",116,null,"عملاء الحركة الواحدة 3"]
["طارق المسيرى ",117,null,"عملاء الحركة الواحدة 3"]
["مصطفي عوض",118,null,"عملاء الحركة الواحدة 3"]
["محمد المحمدي",119,null,"عملاء الحركة الواحدة 3"]
["على محمود فراج",120,null,"عملاء الحركة الواحدة 3"]
[" م. على الكوري",121,null,"عملاء الحركة الواحدة 3"]
["السعيد رشاد",122,null,"عملاء الحركة الواحدة 3"]
["شركة الدقهلية للغزل والنسيج",123,null,"عملاء الحركة الواحدة 3"]
["خالد عبد الرشيد",124,null,"عملاء الحركة الواحدة 3"]
["المستشار - شعبان الباجوري",125,null,"عملاء الحركة الواحدة 3"]
["شركة مصر للزيوت والصابون",126,null,"عملاء الحركة الواحدة 3"]
["محمد نعيم اللوزي",127,null,"عملاء الحركة الواحدة 3"]
["شركة ميجا",128,null,"عملاء الحركة الواحدة 3"]
["مجدى سيد احمد",129,null,"عملاء الحركة الواحدة 3"]
["عبد التواب البيلي",130,null,"عملاء الحركة الواحدة 3"]
["شركة شومان للبلاستيك",131,null,"عملاء الحركة الواحدة 3"]
["الحاج طلعت الغويط",132,null,"عملاء الحركة الواحدة 3"]
["الحاج ياسر مرحبا",133,null,"عملاء الحركة الواحدة 3"]
["ابراهيم اسماعيل",134,null,"عملاء الحركة الواحدة 3"]
["شركة ملامح",135,null,"عملاء الحركة الواحدة 3"]
["الحاج خيري حاويل",136,null,"عملاء الحركة الواحدة 3"]
["الحاج شبل الشرقاوي",137,null,"عملاء الحركة الواحدة 3"]
["الحاج عطية الهنداوي",138,null,"عملاء الحركة الواحدة 3"]
["الحاج احمد ابو دشيش",139,null,"عملاء الحركة الواحدة 3"]
["شركة الامبراطور",140,null,"عملاء الحركة الواحدة 3"]
["عماد عتمان المنزل",117]
["عماد عتمان الشركة",116]
["عماد عتمان سمنود",115]
["مبني المستشفي الجديد"]